{"text_format":"3","workbook":"xlsx","n_sheets":4,"sheets":["WYDARZENIA","KALENDARZ","WERSJA DO DRUKU","ADMINISTRATOR"],"not_rendered":{"defined_names":18},"read":"whole","date_system":"1900"}

{"sheet":"WYDARZENIA","index":0,"n_rows":38,"n_cols":5,"rows_kept":38}
[]
[null,"MIESIĘCZNY TERMINARZ"]
[null,"WYDARZEŃ W SPOŁECZNOŚCI"]
[]
[]
[]
[]
[null,"DATA","DZIEŃ","MIESIĄC","NAZWA WYDARZENIA"]
[null,"2016-07-01",{"$f":"IF(ISBLANK(tbl_Wydarzenia[[#This Row],[DATA]]),\"\",UPPER(TEXT(tbl_Wydarzenia[[#This Row],[DATA]],\"ddd\")))","v":"PT"},{"$f":"IF(ISBLANK(tbl_Wydarzenia[[#This Row],[DATA]]),\"\",UPPER(TEXT(tbl_Wydarzenia[[#This Row],[DATA]],\"mmm\")))","v":"LIP"},"Ogród społeczności"]
[null,"2016-07-01",{"$f":"IF(ISBLANK(tbl_Wydarzenia[[#This Row],[DATA]]),\"\",UPPER(TEXT(tbl_Wydarzenia[[#This Row],[DATA]],\"ddd\")))","v":"PT"},{"$f":"IF(ISBLANK(tbl_Wydarzenia[[#This Row],[DATA]]),\"\",UPPER(TEXT(tbl_Wydarzenia[[#This Row],[DATA]],\"mmm\")))","v":"LIP"},"Rada miasta"]
[null,"2016-07-02",{"$f":"IF(ISBLANK(tbl_Wydarzenia[[#This Row],[DATA]]),\"\",UPPER(TEXT(tbl_Wydarzenia[[#This Row],[DATA]],\"ddd\")))","v":"SO"},{"$f":"IF(ISBLANK(tbl_Wydarzenia[[#This Row],[DATA]]),\"\",UPPER(TEXT(tbl_Wydarzenia[[#This Row],[DATA]],\"mmm\")))","v":"LIP"},"Ogród społeczności"]
[null,"2016-07-03",{"$f":"IF(ISBLANK(tbl_Wydarzenia[[#This Row],[DATA]]),\"\",UPPER(TEXT(tbl_Wydarzenia[[#This Row],[DATA]],\"ddd\")))","v":"N"},{"$f":"IF(ISBLANK(tbl_Wydarzenia[[#This Row],[DATA]]),\"\",UPPER(TEXT(tbl_Wydarzenia[[#This Row],[DATA]],\"mmm\")))","v":"LIP"},"Wieczór filmowy w parku"]
[null,"2016-07-08",{"$f":"IF(ISBLANK(tbl_Wydarzenia[[#This Row],[DATA]]),\"\",UPPER(TEXT(tbl_Wydarzenia[[#This Row],[DATA]],\"ddd\")))","v":"PT"},{"$f":"IF(ISBLANK(tbl_Wydarzenia[[#This Row],[DATA]]),\"\",UPPER(TEXT(tbl_Wydarzenia[[#This Row],[DATA]],\"mmm\")))","v":"LIP"},"Rada miasta"]
[null,"2016-07-11",{"$f":"IF(ISBLANK(tbl_Wydarzenia[[#This Row],[DATA]]),\"\",UPPER(TEXT(tbl_Wydarzenia[[#This Row],[DATA]],\"ddd\")))","v":"PN"},{"$f":"IF(ISBLANK(tbl_Wydarzenia[[#This Row],[DATA]]),\"\",UPPER(TEXT(tbl_Wydarzenia[[#This Row],[DATA]],\"mmm\")))","v":"LIP"},"Spotkanie społeczności przy obiedzie"]
[null,"2016-07-12",{"$f":"IF(ISBLANK(tbl_Wydarzenia[[#This Row],[DATA]]),\"\",UPPER(TEXT(tbl_Wydarzenia[[#This Row],[DATA]],\"ddd\")))","v":"WT"},{"$f":"IF(ISBLANK(tbl_Wydarzenia[[#This Row],[DATA]]),\"\",UPPER(TEXT(tbl_Wydarzenia[[#This Row],[DATA]],\"mmm\")))","v":"LIP"},"Wystawa antyków"]
[null,"2016-07-14",{"$f":"IF(ISBLANK(tbl_Wydarzenia[[#This Row],[DATA]]),\"\",UPPER(TEXT(tbl_Wydarzenia[[#This Row],[DATA]],\"ddd\")))","v":"CZ"},{"$f":"IF(ISBLANK(tbl_Wydarzenia[[#This Row],[DATA]]),\"\",UPPER(TEXT(tbl_Wydarzenia[[#This Row],[DATA]],\"mmm\")))","v":"LIP"},"Warsztat społecznościowy"]
[null,"2016-07-15",{"$f":"IF(ISBLANK(tbl_Wydarzenia[[#This Row],[DATA]]),\"\",UPPER(TEXT(tbl_Wydarzenia[[#This Row],[DATA]],\"ddd\")))","v":"PT"},{"$f":"IF(ISBLANK(tbl_Wydarzenia[[#This Row],[DATA]]),\"\",UPPER(TEXT(tbl_Wydarzenia[[#This Row],[DATA]],\"mmm\")))","v":"LIP"},"Rada miasta"]
[null,"2016-07-19",{"$f":"IF(ISBLANK(tbl_Wydarzenia[[#This Row],[DATA]]),\"\",UPPER(TEXT(tbl_Wydarzenia[[#This Row],[DATA]],\"ddd\")))","v":"WT"},{"$f":"IF(ISBLANK(tbl_Wydarzenia[[#This Row],[DATA]]),\"\",UPPER(TEXT(tbl_Wydarzenia[[#This Row],[DATA]],\"mmm\")))","v":"LIP"},"Warsztat z planowania strategicznego"]
[null,"2016-07-20",{"$f":"IF(ISBLANK(tbl_Wydarzenia[[#This Row],[DATA]]),\"\",UPPER(TEXT(tbl_Wydarzenia[[#This Row],[DATA]],\"ddd\")))","v":"ŚR"},{"$f":"IF(ISBLANK(tbl_Wydarzenia[[#This Row],[DATA]]),\"\",UPPER(TEXT(tbl_Wydarzenia[[#This Row],[DATA]],\"mmm\")))","v":"LIP"},"Sprzątanie parku"]
[null,"2016-07-22",{"$f":"IF(ISBLANK(tbl_Wydarzenia[[#This Row],[DATA]]),\"\",UPPER(TEXT(tbl_Wydarzenia[[#This Row],[DATA]],\"ddd\")))","v":"PT"},{"$f":"IF(ISBLANK(tbl_Wydarzenia[[#This Row],[DATA]]),\"\",UPPER(TEXT(tbl_Wydarzenia[[#This Row],[DATA]],\"mmm\")))","v":"LIP"},"Rada miasta"]
[null,"2016-07-26",{"$f":"IF(ISBLANK(tbl_Wydarzenia[[#This Row],[DATA]]),\"\",UPPER(TEXT(tbl_Wydarzenia[[#This Row],[DATA]],\"ddd\")))","v":"WT"},{"$f":"IF(ISBLANK(tbl_Wydarzenia[[#This Row],[DATA]]),\"\",UPPER(TEXT(tbl_Wydarzenia[[#This Row],[DATA]],\"mmm\")))","v":"LIP"},"Piesza wycieczka po mieście"]
[null,"2016-07-26",{"$f":"IF(ISBLANK(tbl_Wydarzenia[[#This Row],[DATA]]),\"\",UPPER(TEXT(tbl_Wydarzenia[[#This Row],[DATA]],\"ddd\")))","v":"WT"},{"$f":"IF(ISBLANK(tbl_Wydarzenia[[#This Row],[DATA]]),\"\",UPPER(TEXT(tbl_Wydarzenia[[#This Row],[DATA]],\"mmm\")))","v":"LIP"},"Wieczór w pubie"]
[null,"2016-07-29",{"$f":"IF(ISBLANK(tbl_Wydarzenia[[#This Row],[DATA]]),\"\",UPPER(TEXT(tbl_Wydarzenia[[#This Row],[DATA]],\"ddd\")))","v":"PT"},{"$f":"IF(ISBLANK(tbl_Wydarzenia[[#This Row],[DATA]]),\"\",UPPER(TEXT(tbl_Wydarzenia[[#This Row],[DATA]],\"mmm\")))","v":"LIP"},"Rada miasta"]
[null,"2016-08-05",{"$f":"IF(ISBLANK(tbl_Wydarzenia[[#This Row],[DATA]]),\"\",UPPER(TEXT(tbl_Wydarzenia[[#This Row],[DATA]],\"ddd\")))","v":"PT"},{"$f":"IF(ISBLANK(tbl_Wydarzenia[[#This Row],[DATA]]),\"\",UPPER(TEXT(tbl_Wydarzenia[[#This Row],[DATA]],\"mmm\")))","v":"SIE"},"Rada miasta"]
[null,"2016-08-10",{"$f":"IF(ISBLANK(tbl_Wydarzenia[[#This Row],[DATA]]),\"\",UPPER(TEXT(tbl_Wydarzenia[[#This Row],[DATA]],\"ddd\")))","v":"ŚR"},{"$f":"IF(ISBLANK(tbl_Wydarzenia[[#This Row],[DATA]]),\"\",UPPER(TEXT(tbl_Wydarzenia[[#This Row],[DATA]],\"mmm\")))","v":"SIE"},"Sprzątanie parku"]
[null,"2016-08-12",{"$f":"IF(ISBLANK(tbl_Wydarzenia[[#This Row],[DATA]]),\"\",UPPER(TEXT(tbl_Wydarzenia[[#This Row],[DATA]],\"ddd\")))","v":"PT"},{"$f":"IF(ISBLANK(tbl_Wydarzenia[[#This Row],[DATA]]),\"\",UPPER(TEXT(tbl_Wydarzenia[[#This Row],[DATA]],\"mmm\")))","v":"SIE"},"Rada miasta"]
[null,"2016-08-13",{"$f":"IF(ISBLANK(tbl_Wydarzenia[[#This Row],[DATA]]),\"\",UPPER(TEXT(tbl_Wydarzenia[[#This Row],[DATA]],\"ddd\")))","v":"SO"},{"$f":"IF(ISBLANK(tbl_Wydarzenia[[#This Row],[DATA]]),\"\",UPPER(TEXT(tbl_Wydarzenia[[#This Row],[DATA]],\"mmm\")))","v":"SIE"},"Ogród społeczności"]
[null,"2016-09-01",{"$f":"IF(ISBLANK(tbl_Wydarzenia[[#This Row],[DATA]]),\"\",UPPER(TEXT(tbl_Wydarzenia[[#This Row],[DATA]],\"ddd\")))","v":"CZ"},{"$f":"IF(ISBLANK(tbl_Wydarzenia[[#This Row],[DATA]]),\"\",UPPER(TEXT(tbl_Wydarzenia[[#This Row],[DATA]],\"mmm\")))","v":"WRZ"},"Komitet budżetowy"]
[null,"2016-10-01",{"$f":"IF(ISBLANK(tbl_Wydarzenia[[#This Row],[DATA]]),\"\",UPPER(TEXT(tbl_Wydarzenia[[#This Row],[DATA]],\"ddd\")))","v":"SO"},{"$f":"IF(ISBLANK(tbl_Wydarzenia[[#This Row],[DATA]]),\"\",UPPER(TEXT(tbl_Wydarzenia[[#This Row],[DATA]],\"mmm\")))","v":"PAŹ"},"Komitet budżetowy"]
[null,"2016-11-03",{"$f":"IF(ISBLANK(tbl_Wydarzenia[[#This Row],[DATA]]),\"\",UPPER(TEXT(tbl_Wydarzenia[[#This Row],[DATA]],\"ddd\")))","v":"CZ"},{"$f":"IF(ISBLANK(tbl_Wydarzenia[[#This Row],[DATA]]),\"\",UPPER(TEXT(tbl_Wydarzenia[[#This Row],[DATA]],\"mmm\")))","v":"LIS"},"Komitet budżetowy"]
[null,"2016-12-01",{"$f":"IF(ISBLANK(tbl_Wydarzenia[[#This Row],[DATA]]),\"\",UPPER(TEXT(tbl_Wydarzenia[[#This Row],[DATA]],\"ddd\")))","v":"CZ"},{"$f":"IF(ISBLANK(tbl_Wydarzenia[[#This Row],[DATA]]),\"\",UPPER(TEXT(tbl_Wydarzenia[[#This Row],[DATA]],\"mmm\")))","v":"GRU"},"Komitet budżetowy"]
[null,"2017-01-01",{"$f":"IF(ISBLANK(tbl_Wydarzenia[[#This Row],[DATA]]),\"\",UPPER(TEXT(tbl_Wydarzenia[[#This Row],[DATA]],\"ddd\")))","v":"N"},{"$f":"IF(ISBLANK(tbl_Wydarzenia[[#This Row],[DATA]]),\"\",UPPER(TEXT(tbl_Wydarzenia[[#This Row],[DATA]],\"mmm\")))","v":"STY"},"Komitet budżetowy"]
[null,"2017-02-02",{"$f":"IF(ISBLANK(tbl_Wydarzenia[[#This Row],[DATA]]),\"\",UPPER(TEXT(tbl_Wydarzenia[[#This Row],[DATA]],\"ddd\")))","v":"CZ"},{"$f":"IF(ISBLANK(tbl_Wydarzenia[[#This Row],[DATA]]),\"\",UPPER(TEXT(tbl_Wydarzenia[[#This Row],[DATA]],\"mmm\")))","v":"LUT"},"Komitet budżetowy"]
[null,"2017-03-02",{"$f":"IF(ISBLANK(tbl_Wydarzenia[[#This Row],[DATA]]),\"\",UPPER(TEXT(tbl_Wydarzenia[[#This Row],[DATA]],\"ddd\")))","v":"CZ"},{"$f":"IF(ISBLANK(tbl_Wydarzenia[[#This Row],[DATA]]),\"\",UPPER(TEXT(tbl_Wydarzenia[[#This Row],[DATA]],\"mmm\")))","v":"MAR"},"Komitet budżetowy"]
[null,"2017-04-01",{"$f":"IF(ISBLANK(tbl_Wydarzenia[[#This Row],[DATA]]),\"\",UPPER(TEXT(tbl_Wydarzenia[[#This Row],[DATA]],\"ddd\")))","v":"SO"},{"$f":"IF(ISBLANK(tbl_Wydarzenia[[#This Row],[DATA]]),\"\",UPPER(TEXT(tbl_Wydarzenia[[#This Row],[DATA]],\"mmm\")))","v":"KWI"},"Komitet budżetowy"]
[null,"2017-05-01",{"$f":"IF(ISBLANK(tbl_Wydarzenia[[#This Row],[DATA]]),\"\",UPPER(TEXT(tbl_Wydarzenia[[#This Row],[DATA]],\"ddd\")))","v":"PN"},{"$f":"IF(ISBLANK(tbl_Wydarzenia[[#This Row],[DATA]]),\"\",UPPER(TEXT(tbl_Wydarzenia[[#This Row],[DATA]],\"mmm\")))","v":"MAJ"},"Komitet budżetowy"]
[null,"2017-06-01",{"$f":"IF(ISBLANK(tbl_Wydarzenia[[#This Row],[DATA]]),\"\",UPPER(TEXT(tbl_Wydarzenia[[#This Row],[DATA]],\"ddd\")))","v":"CZ"},{"$f":"IF(ISBLANK(tbl_Wydarzenia[[#This Row],[DATA]]),\"\",UPPER(TEXT(tbl_Wydarzenia[[#This Row],[DATA]],\"mmm\")))","v":"CZE"},"Komitet budżetowy"]
[null,"2017-06-02",{"$f":"IF(ISBLANK(tbl_Wydarzenia[[#This Row],[DATA]]),\"\",UPPER(TEXT(tbl_Wydarzenia[[#This Row],[DATA]],\"ddd\")))","v":"PT"},{"$f":"IF(ISBLANK(tbl_Wydarzenia[[#This Row],[DATA]]),\"\",UPPER(TEXT(tbl_Wydarzenia[[#This Row],[DATA]],\"mmm\")))","v":"CZE"},"Rada miasta"]

{"sheet":"KALENDARZ","index":1,"n_rows":35,"n_cols":21,"rows_kept":35,"merged":[[1,5,1,11],[30,8,34,20]]}
[]
[null,null,2016,null,null,{"$f":"LOOKUP(Numer_miesiąca,tbl_Miesiące[LICZBA],tbl_Miesiące[MIESIĄC])","v":"LIPIEC"}]
[null,null,7,null,null,{"$f":"DATE(Wyświetl_rok,Numer_miesiąca,1)","v":"2016-07-01"},null,null,{"$f":"WEEKDAY(Data_rozpoczęcia)","v":6}]
[null,null,"PN",null,null,"WT",null,null,"ŚR",null,null,"CZ",null,null,"PT",null,null,"SO",null,null,"N"]
[]
[null,null,{"$f":"Data_rozpoczęcia-(WEEKDAY(Data_rozpoczęcia)-2)+{0;1;2;3;4;5}*7 +{1,2,3,4,5,6,7}-3+COLUMN(B1)","v":"2016-06-27"},null,null,{"$f":"Data_rozpoczęcia-(WEEKDAY(Data_rozpoczęcia)-2)+{0;1;2;3;4;5}*7 +{1,2,3,4,5,6,7}-3+COLUMN(C1)","v":"2016-06-28"},null,null,{"$f":"Data_rozpoczęcia-(WEEKDAY(Data_rozpoczęcia)-2)+{0;1;2;3;4;5}*7 +{1,2,3,4,5,6,7}-3+COLUMN(D1)","v":"2016-06-29"},null,null,{"$f":"Data_rozpoczęcia-(WEEKDAY(Data_rozpoczęcia)-2)+{0;1;2;3;4;5}*7 +{1,2,3,4,5,6,7}-3+COLUMN(E1)","v":"2016-06-30"},null,null,{"$f":"Data_rozpoczęcia-(WEEKDAY(Data_rozpoczęcia)-2)+{0;1;2;3;4;5}*7 +{1,2,3,4,5,6,7}-3+COLUMN(F1)","v":"2016-07-01"},null,null,{"$f":"Data_rozpoczęcia-(WEEKDAY(Data_rozpoczęcia)-2)+{0;1;2;3;4;5}*7 +{1,2,3,4,5,6,7}-3+COLUMN(G1)","v":"2016-07-02"},null,null,{"$f":"Data_rozpoczęcia-(WEEKDAY(Data_rozpoczęcia)-2)+{0;1;2;3;4;5}*7 +{1,2,3,4,5,6,7}-3+COLUMN(H1)","v":"2016-07-03"}]
[null,null,{"$f":"IFERROR(INDEX(tbl_Wydarzenia[],SMALL(IF(Daty=C$6,ROW(Daty)),ROW(1:1))-Początek_wiersza_tabeli,4),\"\")","v":""},null,null,{"$f":"IFERROR(INDEX(tbl_Wydarzenia[],SMALL(IF(Daty=F$6,ROW(Daty)),ROW(1:1))-Początek_wiersza_tabeli,4),\"\")","v":""},null,null,{"$f":"IFERROR(INDEX(tbl_Wydarzenia[],SMALL(IF(Daty=I$6,ROW(Daty)),ROW(1:1))-Początek_wiersza_tabeli,4),\"\")","v":""},null,null,{"$f":"IFERROR(INDEX(tbl_Wydarzenia[],SMALL(IF(Daty=L$6,ROW(Daty)),ROW(1:1))-Początek_wiersza_tabeli,4),\"\")","v":""},null,null,{"$f":"IFERROR(INDEX(tbl_Wydarzenia[],SMALL(IF(Daty=O$6,ROW(Daty)),ROW(1:1))-Początek_wiersza_tabeli,4),\"\")","v":"Ogród społeczności"},null,null,{"$f":"IFERROR(INDEX(tbl_Wydarzenia[],SMALL(IF(Daty=R$6,ROW(Daty)),ROW(1:1))-Początek_wiersza_tabeli,4),\"\")","v":"Ogród społeczności"},null,null,{"$f":"IFERROR(INDEX(tbl_Wydarzenia[],SMALL(IF(Daty=U$6,ROW(Daty)),ROW(1:1))-Początek_wiersza_tabeli,4),\"\")","v":"Wieczór filmowy w parku"}]
[null,null,{"$f":"IFERROR(INDEX(tbl_Wydarzenia[],SMALL(IF(Daty=C$6,ROW(Daty)),ROW(2:2))-Początek_wiersza_tabeli,4),\"\")","v":""},null,null,{"$f":"IFERROR(INDEX(tbl_Wydarzenia[],SMALL(IF(Daty=F$6,ROW(Daty)),ROW(2:2))-Początek_wiersza_tabeli,4),\"\")","v":""},null,null,{"$f":"IFERROR(INDEX(tbl_Wydarzenia[],SMALL(IF(Daty=I$6,ROW(Daty)),ROW(2:2))-Początek_wiersza_tabeli,4),\"\")","v":""},null,null,{"$f":"IFERROR(INDEX(tbl_Wydarzenia[],SMALL(IF(Daty=L$6,ROW(Daty)),ROW(2:2))-Początek_wiersza_tabeli,4),\"\")","v":""},null,null,{"$f":"IFERROR(INDEX(tbl_Wydarzenia[],SMALL(IF(Daty=O$6,ROW(Daty)),ROW(2:2))-Początek_wiersza_tabeli,4),\"\")","v":"Rada miasta"},null,null,{"$f":"IFERROR(INDEX(tbl_Wydarzenia[],SMALL(IF(Daty=R$6,ROW(Daty)),ROW(2:2))-Początek_wiersza_tabeli,4),\"\")","v":""},null,null,{"$f":"IFERROR(INDEX(tbl_Wydarzenia[],SMALL(IF(Daty=U$6,ROW(Daty)),ROW(2:2))-Początek_wiersza_tabeli,4),\"\")","v":""}]
[null,null,{"$f":"IFERROR(INDEX(tbl_Wydarzenia[],SMALL(IF(Daty=C$6,ROW(Daty)),ROW(3:3))-Początek_wiersza_tabeli,4),\"\")","v":""},null,null,{"$f":"IFERROR(INDEX(tbl_Wydarzenia[],SMALL(IF(Daty=F$6,ROW(Daty)),ROW(3:3))-Początek_wiersza_tabeli,4),\"\")","v":""},null,null,{"$f":"IFERROR(INDEX(tbl_Wydarzenia[],SMALL(IF(Daty=I$6,ROW(Daty)),ROW(3:3))-Początek_wiersza_tabeli,4),\"\")","v":""},null,null,{"$f":"IFERROR(INDEX(tbl_Wydarzenia[],SMALL(IF(Daty=L$6,ROW(Daty)),ROW(3:3))-Początek_wiersza_tabeli,4),\"\")","v":""},null,null,{"$f":"IFERROR(INDEX(tbl_Wydarzenia[],SMALL(IF(Daty=O$6,ROW(Daty)),ROW(3:3))-Początek_wiersza_tabeli,4),\"\")","v":""},null,null,{"$f":"IFERROR(INDEX(tbl_Wydarzenia[],SMALL(IF(Daty=R$6,ROW(Daty)),ROW(3:3))-Początek_wiersza_tabeli,4),\"\")","v":""},null,null,{"$f":"IFERROR(INDEX(tbl_Wydarzenia[],SMALL(IF(Daty=U$6,ROW(Daty)),ROW(3:3))-Początek_wiersza_tabeli,4),\"\")","v":""}]
[null,null,{"$f":"IFERROR(INDEX(tbl_Wydarzenia[],SMALL(IF(Daty=C$6,ROW(Daty)),ROW(4:4))-Początek_wiersza_tabeli,4),\"\")","v":""},null,null,{"$f":"IFERROR(INDEX(tbl_Wydarzenia[],SMALL(IF(Daty=F$6,ROW(Daty)),ROW(4:4))-Początek_wiersza_tabeli,4),\"\")","v":""},null,null,{"$f":"IFERROR(INDEX(tbl_Wydarzenia[],SMALL(IF(Daty=I$6,ROW(Daty)),ROW(4:4))-Początek_wiersza_tabeli,4),\"\")","v":""},null,null,{"$f":"IFERROR(INDEX(tbl_Wydarzenia[],SMALL(IF(Daty=L$6,ROW(Daty)),ROW(4:4))-Początek_wiersza_tabeli,4),\"\")","v":""},null,null,{"$f":"IFERROR(INDEX(tbl_Wydarzenia[],SMALL(IF(Daty=O$6,ROW(Daty)),ROW(4:4))-Początek_wiersza_tabeli,4),\"\")","v":""},null,null,{"$f":"IFERROR(INDEX(tbl_Wydarzenia[],SMALL(IF(Daty=R$6,ROW(Daty)),ROW(4:4))-Początek_wiersza_tabeli,4),\"\")","v":""},null,null,{"$f":"IFERROR(INDEX(tbl_Wydarzenia[],SMALL(IF(Daty=U$6,ROW(Daty)),ROW(4:4))-Początek_wiersza_tabeli,4),\"\")","v":""}]
[null,null,{"$f":"U6+1","v":"2016-07-04"},null,null,{"$f":"C11+1","v":"2016-07-05"},null,null,{"$f":"F11+1","v":"2016-07-06"},null,null,{"$f":"I11+1","v":"2016-07-07"},null,null,{"$f":"L11+1","v":"2016-07-08"},null,null,{"$f":"O11+1","v":"2016-07-09"},null,null,{"$f":"R11+1","v":"2016-07-10"}]
[null,null,{"$f":"IFERROR(INDEX(tbl_Wydarzenia[],SMALL(IF(Daty=C$11,ROW(Daty)),ROW(1:1))-Początek_wiersza_tabeli,4),\"\")","v":""},null,null,{"$f":"IFERROR(INDEX(tbl_Wydarzenia[],SMALL(IF(Daty=F$11,ROW(Daty)),ROW(1:1))-Początek_wiersza_tabeli,4),\"\")","v":""},null,null,{"$f":"IFERROR(INDEX(tbl_Wydarzenia[],SMALL(IF(Daty=I$11,ROW(Daty)),ROW(1:1))-Początek_wiersza_tabeli,4),\"\")","v":""},null,null,{"$f":"IFERROR(INDEX(tbl_Wydarzenia[],SMALL(IF(Daty=L$11,ROW(Daty)),ROW(1:1))-Początek_wiersza_tabeli,4),\"\")","v":""},null,null,{"$f":"IFERROR(INDEX(tbl_Wydarzenia[],SMALL(IF(Daty=O$11,ROW(Daty)),ROW(1:1))-Początek_wiersza_tabeli,4),\"\")","v":"Rada miasta"},null,null,{"$f":"IFERROR(INDEX(tbl_Wydarzenia[],SMALL(IF(Daty=R$11,ROW(Daty)),ROW(1:1))-Początek_wiersza_tabeli,4),\"\")","v":""},null,null,{"$f":"IFERROR(INDEX(tbl_Wydarzenia[],SMALL(IF(Daty=U$11,ROW(Daty)),ROW(1:1))-Początek_wiersza_tabeli,4),\"\")","v":""}]
[null,null,{"$f":"IFERROR(INDEX(tbl_Wydarzenia[],SMALL(IF(Daty=C$11,ROW(Daty)),ROW(2:2))-Początek_wiersza_tabeli,4),\"\")","v":""},null,null,{"$f":"IFERROR(INDEX(tbl_Wydarzenia[],SMALL(IF(Daty=F$11,ROW(Daty)),ROW(2:2))-Początek_wiersza_tabeli,4),\"\")","v":""},null,null,{"$f":"IFERROR(INDEX(tbl_Wydarzenia[],SMALL(IF(Daty=I$11,ROW(Daty)),ROW(2:2))-Początek_wiersza_tabeli,4),\"\")","v":""},null,null,{"$f":"IFERROR(INDEX(tbl_Wydarzenia[],SMALL(IF(Daty=L$11,ROW(Daty)),ROW(2:2))-Początek_wiersza_tabeli,4),\"\")","v":""},null,null,{"$f":"IFERROR(INDEX(tbl_Wydarzenia[],SMALL(IF(Daty=O$11,ROW(Daty)),ROW(2:2))-Początek_wiersza_tabeli,4),\"\")","v":""},null,null,{"$f":"IFERROR(INDEX(tbl_Wydarzenia[],SMALL(IF(Daty=R$11,ROW(Daty)),ROW(2:2))-Początek_wiersza_tabeli,4),\"\")","v":""},null,null,{"$f":"IFERROR(INDEX(tbl_Wydarzenia[],SMALL(IF(Daty=U$11,ROW(Daty)),ROW(2:2))-Początek_wiersza_tabeli,4),\"\")","v":""}]
[null,null,{"$f":"IFERROR(INDEX(tbl_Wydarzenia[],SMALL(IF(Daty=C$11,ROW(Daty)),ROW(3:3))-Początek_wiersza_tabeli,4),\"\")","v":""},null,null,{"$f":"IFERROR(INDEX(tbl_Wydarzenia[],SMALL(IF(Daty=F$11,ROW(Daty)),ROW(3:3))-Początek_wiersza_tabeli,4),\"\")","v":""},null,null,{"$f":"IFERROR(INDEX(tbl_Wydarzenia[],SMALL(IF(Daty=I$11,ROW(Daty)),ROW(3:3))-Początek_wiersza_tabeli,4),\"\")","v":""},null,null,{"$f":"IFERROR(INDEX(tbl_Wydarzenia[],SMALL(IF(Daty=L$11,ROW(Daty)),ROW(3:3))-Początek_wiersza_tabeli,4),\"\")","v":""},null,null,{"$f":"IFERROR(INDEX(tbl_Wydarzenia[],SMALL(IF(Daty=O$11,ROW(Daty)),ROW(3:3))-Początek_wiersza_tabeli,4),\"\")","v":""},null,null,{"$f":"IFERROR(INDEX(tbl_Wydarzenia[],SMALL(IF(Daty=R$11,ROW(Daty)),ROW(3:3))-Początek_wiersza_tabeli,4),\"\")","v":""},null,null,{"$f":"IFERROR(INDEX(tbl_Wydarzenia[],SMALL(IF(Daty=U$11,ROW(Daty)),ROW(3:3))-Początek_wiersza_tabeli,4),\"\")","v":""}]
[null,null,{"$f":"IFERROR(INDEX(tbl_Wydarzenia[],SMALL(IF(Daty=C$11,ROW(Daty)),ROW(4:4))-Początek_wiersza_tabeli,4),\"\")","v":""},null,null,{"$f":"IFERROR(INDEX(tbl_Wydarzenia[],SMALL(IF(Daty=F$11,ROW(Daty)),ROW(4:4))-Początek_wiersza_tabeli,4),\"\")","v":""},null,null,{"$f":"IFERROR(INDEX(tbl_Wydarzenia[],SMALL(IF(Daty=I$11,ROW(Daty)),ROW(4:4))-Początek_wiersza_tabeli,4),\"\")","v":""},null,null,{"$f":"IFERROR(INDEX(tbl_Wydarzenia[],SMALL(IF(Daty=L$11,ROW(Daty)),ROW(4:4))-Początek_wiersza_tabeli,4),\"\")","v":""},null,null,{"$f":"IFERROR(INDEX(tbl_Wydarzenia[],SMALL(IF(Daty=O$11,ROW(Daty)),ROW(4:4))-Początek_wiersza_tabeli,4),\"\")","v":""},null,null,{"$f":"IFERROR(INDEX(tbl_Wydarzenia[],SMALL(IF(Daty=R$11,ROW(Daty)),ROW(4:4))-Początek_wiersza_tabeli,4),\"\")","v":""},null,null,{"$f":"IFERROR(INDEX(tbl_Wydarzenia[],SMALL(IF(Daty=U$11,ROW(Daty)),ROW(4:4))-Początek_wiersza_tabeli,4),\"\")","v":""}]
[null,null,{"$f":"U11+1","v":"2016-07-11"},null,null,{"$f":"C16+1","v":"2016-07-12"},null,null,{"$f":"F16+1","v":"2016-07-13"},null,null,{"$f":"I16+1","v":"2016-07-14"},null,null,{"$f":"L16+1","v":"2016-07-15"},null,null,{"$f":"O16+1","v":"2016-07-16"},null,null,{"$f":"R16+1","v":"2016-07-17"}]
[null,null,{"$f":"IFERROR(INDEX(tbl_Wydarzenia[],SMALL(IF(Daty=C$16,ROW(Daty)),ROW(1:1))-Początek_wiersza_tabeli,4),\"\")","v":"Spotkanie społeczności przy obiedzie"},null,null,{"$f":"IFERROR(INDEX(tbl_Wydarzenia[],SMALL(IF(Daty=F$16,ROW(Daty)),ROW(1:1))-Początek_wiersza_tabeli,4),\"\")","v":"Wystawa antyków"},null,null,{"$f":"IFERROR(INDEX(tbl_Wydarzenia[],SMALL(IF(Daty=I$16,ROW(Daty)),ROW(1:1))-Początek_wiersza_tabeli,4),\"\")","v":""},null,null,{"$f":"IFERROR(INDEX(tbl_Wydarzenia[],SMALL(IF(Daty=L$16,ROW(Daty)),ROW(1:1))-Początek_wiersza_tabeli,4),\"\")","v":"Warsztat społecznościowy"},null,null,{"$f":"IFERROR(INDEX(tbl_Wydarzenia[],SMALL(IF(Daty=O$16,ROW(Daty)),ROW(1:1))-Początek_wiersza_tabeli,4),\"\")","v":"Rada miasta"},null,null,{"$f":"IFERROR(INDEX(tbl_Wydarzenia[],SMALL(IF(Daty=R$16,ROW(Daty)),ROW(1:1))-Początek_wiersza_tabeli,4),\"\")","v":""},null,null,{"$f":"IFERROR(INDEX(tbl_Wydarzenia[],SMALL(IF(Daty=U$16,ROW(Daty)),ROW(1:1))-Początek_wiersza_tabeli,4),\"\")","v":""}]
[null,null,{"$f":"IFERROR(INDEX(tbl_Wydarzenia[],SMALL(IF(Daty=C$16,ROW(Daty)),ROW(2:2))-Początek_wiersza_tabeli,4),\"\")","v":""},null,null,{"$f":"IFERROR(INDEX(tbl_Wydarzenia[],SMALL(IF(Daty=F$16,ROW(Daty)),ROW(2:2))-Początek_wiersza_tabeli,4),\"\")","v":""},null,null,{"$f":"IFERROR(INDEX(tbl_Wydarzenia[],SMALL(IF(Daty=I$16,ROW(Daty)),ROW(2:2))-Początek_wiersza_tabeli,4),\"\")","v":""},null,null,{"$f":"IFERROR(INDEX(tbl_Wydarzenia[],SMALL(IF(Daty=L$16,ROW(Daty)),ROW(2:2))-Początek_wiersza_tabeli,4),\"\")","v":""},null,null,{"$f":"IFERROR(INDEX(tbl_Wydarzenia[],SMALL(IF(Daty=O$16,ROW(Daty)),ROW(2:2))-Początek_wiersza_tabeli,4),\"\")","v":""},null,null,{"$f":"IFERROR(INDEX(tbl_Wydarzenia[],SMALL(IF(Daty=R$16,ROW(Daty)),ROW(2:2))-Początek_wiersza_tabeli,4),\"\")","v":""},null,null,{"$f":"IFERROR(INDEX(tbl_Wydarzenia[],SMALL(IF(Daty=U$16,ROW(Daty)),ROW(2:2))-Początek_wiersza_tabeli,4),\"\")","v":""}]
[null,null,{"$f":"IFERROR(INDEX(tbl_Wydarzenia[],SMALL(IF(Daty=C$16,ROW(Daty)),ROW(3:3))-Początek_wiersza_tabeli,4),\"\")","v":""},null,null,{"$f":"IFERROR(INDEX(tbl_Wydarzenia[],SMALL(IF(Daty=F$16,ROW(Daty)),ROW(3:3))-Początek_wiersza_tabeli,4),\"\")","v":""},null,null,{"$f":"IFERROR(INDEX(tbl_Wydarzenia[],SMALL(IF(Daty=I$16,ROW(Daty)),ROW(3:3))-Początek_wiersza_tabeli,4),\"\")","v":""},null,null,{"$f":"IFERROR(INDEX(tbl_Wydarzenia[],SMALL(IF(Daty=L$16,ROW(Daty)),ROW(3:3))-Początek_wiersza_tabeli,4),\"\")","v":""},null,null,{"$f":"IFERROR(INDEX(tbl_Wydarzenia[],SMALL(IF(Daty=O$16,ROW(Daty)),ROW(3:3))-Początek_wiersza_tabeli,4),\"\")","v":""},null,null,{"$f":"IFERROR(INDEX(tbl_Wydarzenia[],SMALL(IF(Daty=R$16,ROW(Daty)),ROW(3:3))-Początek_wiersza_tabeli,4),\"\")","v":""},null,null,{"$f":"IFERROR(INDEX(tbl_Wydarzenia[],SMALL(IF(Daty=U$16,ROW(Daty)),ROW(3:3))-Początek_wiersza_tabeli,4),\"\")","v":""}]
[null,null,{"$f":"IFERROR(INDEX(tbl_Wydarzenia[],SMALL(IF(Daty=C$16,ROW(Daty)),ROW(4:4))-Początek_wiersza_tabeli,4),\"\")","v":""},null,null,{"$f":"IFERROR(INDEX(tbl_Wydarzenia[],SMALL(IF(Daty=F$16,ROW(Daty)),ROW(4:4))-Początek_wiersza_tabeli,4),\"\")","v":""},null,null,{"$f":"IFERROR(INDEX(tbl_Wydarzenia[],SMALL(IF(Daty=I$16,ROW(Daty)),ROW(4:4))-Początek_wiersza_tabeli,4),\"\")","v":""},null,null,{"$f":"IFERROR(INDEX(tbl_Wydarzenia[],SMALL(IF(Daty=L$16,ROW(Daty)),ROW(4:4))-Początek_wiersza_tabeli,4),\"\")","v":""},null,null,{"$f":"IFERROR(INDEX(tbl_Wydarzenia[],SMALL(IF(Daty=O$16,ROW(Daty)),ROW(4:4))-Początek_wiersza_tabeli,4),\"\")","v":""},null,null,{"$f":"IFERROR(INDEX(tbl_Wydarzenia[],SMALL(IF(Daty=R$16,ROW(Daty)),ROW(4:4))-Początek_wiersza_tabeli,4),\"\")","v":""},null,null,{"$f":"IFERROR(INDEX(tbl_Wydarzenia[],SMALL(IF(Daty=U$16,ROW(Daty)),ROW(4:4))-Początek_wiersza_tabeli,4),\"\")","v":""}]
[null,null,{"$f":"U16+1","v":"2016-07-18"},null,null,{"$f":"C21+1","v":"2016-07-19"},null,null,{"$f":"F21+1","v":"2016-07-20"},null,null,{"$f":"I21+1","v":"2016-07-21"},null,null,{"$f":"L21+1","v":"2016-07-22"},null,null,{"$f":"O21+1","v":"2016-07-23"},null,null,{"$f":"R21+1","v":"2016-07-24"}]
[null,null,{"$f":"IFERROR(INDEX(tbl_Wydarzenia[],SMALL(IF(Daty=C$21,ROW(Daty)),ROW(1:1))-Początek_wiersza_tabeli,4),\"\")","v":""},null,null,{"$f":"IFERROR(INDEX(tbl_Wydarzenia[],SMALL(IF(Daty=F$21,ROW(Daty)),ROW(1:1))-Początek_wiersza_tabeli,4),\"\")","v":"Warsztat z planowania strategicznego"},null,null,{"$f":"IFERROR(INDEX(tbl_Wydarzenia[],SMALL(IF(Daty=I$21,ROW(Daty)),ROW(1:1))-Początek_wiersza_tabeli,4),\"\")","v":"Sprzątanie parku"},null,null,{"$f":"IFERROR(INDEX(tbl_Wydarzenia[],SMALL(IF(Daty=L$21,ROW(Daty)),ROW(1:1))-Początek_wiersza_tabeli,4),\"\")","v":""},null,null,{"$f":"IFERROR(INDEX(tbl_Wydarzenia[],SMALL(IF(Daty=O$21,ROW(Daty)),ROW(1:1))-Początek_wiersza_tabeli,4),\"\")","v":"Rada miasta"},null,null,{"$f":"IFERROR(INDEX(tbl_Wydarzenia[],SMALL(IF(Daty=R$21,ROW(Daty)),ROW(1:1))-Początek_wiersza_tabeli,4),\"\")","v":""},null,null,{"$f":"IFERROR(INDEX(tbl_Wydarzenia[],SMALL(IF(Daty=U$21,ROW(Daty)),ROW(1:1))-Początek_wiersza_tabeli,4),\"\")","v":""}]
[null,null,{"$f":"IFERROR(INDEX(tbl_Wydarzenia[],SMALL(IF(Daty=C$21,ROW(Daty)),ROW(2:2))-Początek_wiersza_tabeli,4),\"\")","v":""},null,null,{"$f":"IFERROR(INDEX(tbl_Wydarzenia[],SMALL(IF(Daty=F$21,ROW(Daty)),ROW(2:2))-Początek_wiersza_tabeli,4),\"\")","v":""},null,null,{"$f":"IFERROR(INDEX(tbl_Wydarzenia[],SMALL(IF(Daty=I$21,ROW(Daty)),ROW(2:2))-Początek_wiersza_tabeli,4),\"\")","v":""},null,null,{"$f":"IFERROR(INDEX(tbl_Wydarzenia[],SMALL(IF(Daty=L$21,ROW(Daty)),ROW(2:2))-Początek_wiersza_tabeli,4),\"\")","v":""},null,null,{"$f":"IFERROR(INDEX(tbl_Wydarzenia[],SMALL(IF(Daty=O$21,ROW(Daty)),ROW(2:2))-Początek_wiersza_tabeli,4),\"\")","v":""},null,null,{"$f":"IFERROR(INDEX(tbl_Wydarzenia[],SMALL(IF(Daty=R$21,ROW(Daty)),ROW(2:2))-Początek_wiersza_tabeli,4),\"\")","v":""},null,null,{"$f":"IFERROR(INDEX(tbl_Wydarzenia[],SMALL(IF(Daty=U$21,ROW(Daty)),ROW(2:2))-Początek_wiersza_tabeli,4),\"\")","v":""}]
[null,null,{"$f":"IFERROR(INDEX(tbl_Wydarzenia[],SMALL(IF(Daty=C$21,ROW(Daty)),ROW(3:3))-Początek_wiersza_tabeli,4),\"\")","v":""},null,null,{"$f":"IFERROR(INDEX(tbl_Wydarzenia[],SMALL(IF(Daty=F$21,ROW(Daty)),ROW(3:3))-Początek_wiersza_tabeli,4),\"\")","v":""},null,null,{"$f":"IFERROR(INDEX(tbl_Wydarzenia[],SMALL(IF(Daty=I$21,ROW(Daty)),ROW(3:3))-Początek_wiersza_tabeli,4),\"\")","v":""},null,null,{"$f":"IFERROR(INDEX(tbl_Wydarzenia[],SMALL(IF(Daty=L$21,ROW(Daty)),ROW(3:3))-Początek_wiersza_tabeli,4),\"\")","v":""},null,null,{"$f":"IFERROR(INDEX(tbl_Wydarzenia[],SMALL(IF(Daty=O$21,ROW(Daty)),ROW(3:3))-Początek_wiersza_tabeli,4),\"\")","v":""},null,null,{"$f":"IFERROR(INDEX(tbl_Wydarzenia[],SMALL(IF(Daty=R$21,ROW(Daty)),ROW(3:3))-Początek_wiersza_tabeli,4),\"\")","v":""},null,null,{"$f":"IFERROR(INDEX(tbl_Wydarzenia[],SMALL(IF(Daty=U$21,ROW(Daty)),ROW(3:3))-Początek_wiersza_tabeli,4),\"\")","v":""}]
[null,null,{"$f":"IFERROR(INDEX(tbl_Wydarzenia[],SMALL(IF(Daty=C$21,ROW(Daty)),ROW(4:4))-Początek_wiersza_tabeli,4),\"\")","v":""},null,null,{"$f":"IFERROR(INDEX(tbl_Wydarzenia[],SMALL(IF(Daty=F$21,ROW(Daty)),ROW(4:4))-Początek_wiersza_tabeli,4),\"\")","v":""},null,null,{"$f":"IFERROR(INDEX(tbl_Wydarzenia[],SMALL(IF(Daty=I$21,ROW(Daty)),ROW(4:4))-Początek_wiersza_tabeli,4),\"\")","v":""},null,null,{"$f":"IFERROR(INDEX(tbl_Wydarzenia[],SMALL(IF(Daty=L$21,ROW(Daty)),ROW(4:4))-Początek_wiersza_tabeli,4),\"\")","v":""},null,null,{"$f":"IFERROR(INDEX(tbl_Wydarzenia[],SMALL(IF(Daty=O$21,ROW(Daty)),ROW(4:4))-Początek_wiersza_tabeli,4),\"\")","v":""},null,null,{"$f":"IFERROR(INDEX(tbl_Wydarzenia[],SMALL(IF(Daty=R$21,ROW(Daty)),ROW(4:4))-Początek_wiersza_tabeli,4),\"\")","v":""},null,null,{"$f":"IFERROR(INDEX(tbl_Wydarzenia[],SMALL(IF(Daty=U$21,ROW(Daty)),ROW(4:4))-Początek_wiersza_tabeli,4),\"\")","v":""}]
[null,null,{"$f":"U21+1","v":"2016-07-25"},null,null,{"$f":"C26+1","v":"2016-07-26"},null,null,{"$f":"F26+1","v":"2016-07-27"},null,null,{"$f":"I26+1","v":"2016-07-28"},null,null,{"$f":"L26+1","v":"2016-07-29"},null,null,{"$f":"O26+1","v":"2016-07-30"},null,null,{"$f":"R26+1","v":"2016-07-31"}]
[null,null,{"$f":"IFERROR(INDEX(tbl_Wydarzenia[],SMALL(IF(Daty=C$26,ROW(Daty)),ROW(1:1))-Początek_wiersza_tabeli,4),\"\")","v":""},null,null,{"$f":"IFERROR(INDEX(tbl_Wydarzenia[],SMALL(IF(Daty=F$26,ROW(Daty)),ROW(1:1))-Początek_wiersza_tabeli,4),\"\")","v":"Piesza wycieczka po mieście"},null,null,{"$f":"IFERROR(INDEX(tbl_Wydarzenia[],SMALL(IF(Daty=I$26,ROW(Daty)),ROW(1:1))-Początek_wiersza_tabeli,4),\"\")","v":""},null,null,{"$f":"IFERROR(INDEX(tbl_Wydarzenia[],SMALL(IF(Daty=L$26,ROW(Daty)),ROW(1:1))-Początek_wiersza_tabeli,4),\"\")","v":""},null,null,{"$f":"IFERROR(INDEX(tbl_Wydarzenia[],SMALL(IF(Daty=O$26,ROW(Daty)),ROW(1:1))-Początek_wiersza_tabeli,4),\"\")","v":"Rada miasta"},null,null,{"$f":"IFERROR(INDEX(tbl_Wydarzenia[],SMALL(IF(Daty=R$26,ROW(Daty)),ROW(1:1))-Początek_wiersza_tabeli,4),\"\")","v":""},null,null,{"$f":"IFERROR(INDEX(tbl_Wydarzenia[],SMALL(IF(Daty=U$26,ROW(Daty)),ROW(1:1))-Początek_wiersza_tabeli,4),\"\")","v":""}]
[null,null,{"$f":"IFERROR(INDEX(tbl_Wydarzenia[],SMALL(IF(Daty=C$26,ROW(Daty)),ROW(2:2))-Początek_wiersza_tabeli,4),\"\")","v":""},null,null,{"$f":"IFERROR(INDEX(tbl_Wydarzenia[],SMALL(IF(Daty=F$26,ROW(Daty)),ROW(2:2))-Początek_wiersza_tabeli,4),\"\")","v":"Wieczór w pubie"},null,null,{"$f":"IFERROR(INDEX(tbl_Wydarzenia[],SMALL(IF(Daty=I$26,ROW(Daty)),ROW(2:2))-Początek_wiersza_tabeli,4),\"\")","v":""},null,null,{"$f":"IFERROR(INDEX(tbl_Wydarzenia[],SMALL(IF(Daty=L$26,ROW(Daty)),ROW(2:2))-Początek_wiersza_tabeli,4),\"\")","v":""},null,null,{"$f":"IFERROR(INDEX(tbl_Wydarzenia[],SMALL(IF(Daty=O$26,ROW(Daty)),ROW(2:2))-Początek_wiersza_tabeli,4),\"\")","v":""},null,null,{"$f":"IFERROR(INDEX(tbl_Wydarzenia[],SMALL(IF(Daty=R$26,ROW(Daty)),ROW(2:2))-Początek_wiersza_tabeli,4),\"\")","v":""},null,null,{"$f":"IFERROR(INDEX(tbl_Wydarzenia[],SMALL(IF(Daty=U$26,ROW(Daty)),ROW(2:2))-Początek_wiersza_tabeli,4),\"\")","v":""}]
[null,null,{"$f":"IFERROR(INDEX(tbl_Wydarzenia[],SMALL(IF(Daty=C$26,ROW(Daty)),ROW(3:3))-Początek_wiersza_tabeli,4),\"\")","v":""},null,null,{"$f":"IFERROR(INDEX(tbl_Wydarzenia[],SMALL(IF(Daty=F$26,ROW(Daty)),ROW(3:3))-Początek_wiersza_tabeli,4),\"\")","v":""},null,null,{"$f":"IFERROR(INDEX(tbl_Wydarzenia[],SMALL(IF(Daty=I$26,ROW(Daty)),ROW(3:3))-Początek_wiersza_tabeli,4),\"\")","v":""},null,null,{"$f":"IFERROR(INDEX(tbl_Wydarzenia[],SMALL(IF(Daty=L$26,ROW(Daty)),ROW(3:3))-Początek_wiersza_tabeli,4),\"\")","v":""},null,null,{"$f":"IFERROR(INDEX(tbl_Wydarzenia[],SMALL(IF(Daty=O$26,ROW(Daty)),ROW(3:3))-Początek_wiersza_tabeli,4),\"\")","v":""},null,null,{"$f":"IFERROR(INDEX(tbl_Wydarzenia[],SMALL(IF(Daty=R$26,ROW(Daty)),ROW(3:3))-Początek_wiersza_tabeli,4),\"\")","v":""},null,null,{"$f":"IFERROR(INDEX(tbl_Wydarzenia[],SMALL(IF(Daty=U$26,ROW(Daty)),ROW(3:3))-Początek_wiersza_tabeli,4),\"\")","v":""}]
[null,null,{"$f":"IFERROR(INDEX(tbl_Wydarzenia[],SMALL(IF(Daty=C$26,ROW(Daty)),ROW(4:4))-Początek_wiersza_tabeli,4),\"\")","v":""},null,null,{"$f":"IFERROR(INDEX(tbl_Wydarzenia[],SMALL(IF(Daty=F$26,ROW(Daty)),ROW(4:4))-Początek_wiersza_tabeli,4),\"\")","v":""},null,null,{"$f":"IFERROR(INDEX(tbl_Wydarzenia[],SMALL(IF(Daty=I$26,ROW(Daty)),ROW(4:4))-Początek_wiersza_tabeli,4),\"\")","v":""},null,null,{"$f":"IFERROR(INDEX(tbl_Wydarzenia[],SMALL(IF(Daty=L$26,ROW(Daty)),ROW(4:4))-Początek_wiersza_tabeli,4),\"\")","v":""},null,null,{"$f":"IFERROR(INDEX(tbl_Wydarzenia[],SMALL(IF(Daty=O$26,ROW(Daty)),ROW(4:4))-Początek_wiersza_tabeli,4),\"\")","v":""},null,null,{"$f":"IFERROR(INDEX(tbl_Wydarzenia[],SMALL(IF(Daty=R$26,ROW(Daty)),ROW(4:4))-Początek_wiersza_tabeli,4),\"\")","v":""},null,null,{"$f":"IFERROR(INDEX(tbl_Wydarzenia[],SMALL(IF(Daty=U$26,ROW(Daty)),ROW(4:4))-Początek_wiersza_tabeli,4),\"\")","v":""}]
[null,null,{"$f":"U26+1","v":"2016-08-01"},null,null,{"$f":"C31+1","v":"2016-08-02"},null,null,"NOTATKI:"]
[null,null,{"$f":"IFERROR(INDEX(tbl_Wydarzenia[],SMALL(IF(Daty=C$31,ROW(Daty)),ROW(1:1))-Początek_wiersza_tabeli,4),\"\")","v":""},null,null,{"$f":"IFERROR(INDEX(tbl_Wydarzenia[],SMALL(IF(Daty=F$31,ROW(Daty)),ROW(1:1))-Początek_wiersza_tabeli,4),\"\")","v":""}]
[null,null,{"$f":"IFERROR(INDEX(tbl_Wydarzenia[],SMALL(IF(Daty=C$31,ROW(Daty)),ROW(2:2))-Początek_wiersza_tabeli,4),\"\")","v":""},null,null,{"$f":"IFERROR(INDEX(tbl_Wydarzenia[],SMALL(IF(Daty=F$31,ROW(Daty)),ROW(2:2))-Początek_wiersza_tabeli,4),\"\")","v":""}]
[null,null,{"$f":"IFERROR(INDEX(tbl_Wydarzenia[],SMALL(IF(Daty=C$31,ROW(Daty)),ROW(3:3))-Początek_wiersza_tabeli,4),\"\")","v":""},null,null,{"$f":"IFERROR(INDEX(tbl_Wydarzenia[],SMALL(IF(Daty=F$31,ROW(Daty)),ROW(3:3))-Początek_wiersza_tabeli,4),\"\")","v":""}]
[null,null,{"$f":"IFERROR(INDEX(tbl_Wydarzenia[],SMALL(IF(Daty=C$31,ROW(Daty)),ROW(4:4))-Początek_wiersza_tabeli,4),\"\")","v":""},null,null,{"$f":"IFERROR(INDEX(tbl_Wydarzenia[],SMALL(IF(Daty=F$31,ROW(Daty)),ROW(4:4))-Początek_wiersza_tabeli,4),\"\")","v":""}]

{"sheet":"WERSJA DO DRUKU","index":2,"n_rows":35,"n_cols":21,"rows_kept":35,"merged":[[1,5,1,11],[30,8,34,20]]}
[]
[null,null,{"$f":"Wyświetl_rok","v":2016},null,null,{"$f":"Wyświetl_miesiąc","v":"LIPIEC"}]
[]
[null,null,"PN",null,null,"WT",null,null,"ŚR",null,null,"CZ",null,null,"PT",null,null,"SO",null,null,"N"]
[]
[null,null,{"$f":"KALENDARZ!C6","v":"2016-06-27"},{"$f":"KALENDARZ!D6","v":0},{"$f":"KALENDARZ!E6","v":0},{"$f":"KALENDARZ!F6","v":"2016-06-28"},{"$f":"KALENDARZ!G6","v":0},{"$f":"KALENDARZ!H6","v":0},{"$f":"KALENDARZ!I6","v":"2016-06-29"},{"$f":"KALENDARZ!J6","v":0},{"$f":"KALENDARZ!K6","v":0},{"$f":"KALENDARZ!L6","v":"2016-06-30"},{"$f":"KALENDARZ!M6","v":0},{"$f":"KALENDARZ!N6","v":0},{"$f":"KALENDARZ!O6","v":"2016-07-01"},{"$f":"KALENDARZ!P6","v":0},{"$f":"KALENDARZ!Q6","v":0},{"$f":"KALENDARZ!R6","v":"2016-07-02"},{"$f":"KALENDARZ!S6","v":0},{"$f":"KALENDARZ!T6","v":0},{"$f":"KALENDARZ!U6","v":"2016-07-03"}]
[null,null,{"$f":"KALENDARZ!C7","v":""},{"$f":"KALENDARZ!D7","v":0},{"$f":"KALENDARZ!E7","v":0},{"$f":"KALENDARZ!F7","v":""},{"$f":"KALENDARZ!G7","v":0},{"$f":"KALENDARZ!H7","v":0},{"$f":"KALENDARZ!I7","v":""},{"$f":"KALENDARZ!J7","v":0},{"$f":"KALENDARZ!K7","v":0},{"$f":"KALENDARZ!L7","v":""},{"$f":"KALENDARZ!M7","v":0},{"$f":"KALENDARZ!N7","v":0},{"$f":"KALENDARZ!O7","v":"Ogród społeczności"},{"$f":"KALENDARZ!P7","v":0},{"$f":"KALENDARZ!Q7","v":0},{"$f":"KALENDARZ!R7","v":"Ogród społeczności"},{"$f":"KALENDARZ!S7","v":0},{"$f":"KALENDARZ!T7","v":0},{"$f":"KALENDARZ!U7","v":"Wieczór filmowy w parku"}]
[null,null,{"$f":"KALENDARZ!C8","v":""},{"$f":"KALENDARZ!D8","v":"00:00:00"},{"$f":"KALENDARZ!E8","v":"00:00:00"},{"$f":"KALENDARZ!F8","v":""},{"$f":"KALENDARZ!G8","v":"00:00:00"},{"$f":"KALENDARZ!H8","v":"00:00:00"},{"$f":"KALENDARZ!I8","v":""},{"$f":"KALENDARZ!J8","v":"00:00:00"},{"$f":"KALENDARZ!K8","v":"00:00:00"},{"$f":"KALENDARZ!L8","v":""},{"$f":"KALENDARZ!M8","v":"00:00:00"},{"$f":"KALENDARZ!N8","v":"00:00:00"},{"$f":"KALENDARZ!O8","v":"Rada miasta"},{"$f":"KALENDARZ!P8","v":"00:00:00"},{"$f":"KALENDARZ!Q8","v":"00:00:00"},{"$f":"KALENDARZ!R8","v":""},{"$f":"KALENDARZ!S8","v":"00:00:00"},{"$f":"KALENDARZ!T8","v":"00:00:00"},{"$f":"KALENDARZ!U8","v":""}]
[null,null,{"$f":"KALENDARZ!C9","v":""},{"$f":"KALENDARZ!D9","v":0},{"$f":"KALENDARZ!E9","v":0},{"$f":"KALENDARZ!F9","v":""},{"$f":"KALENDARZ!G9","v":0},{"$f":"KALENDARZ!H9","v":0},{"$f":"KALENDARZ!I9","v":""},{"$f":"KALENDARZ!J9","v":0},{"$f":"KALENDARZ!K9","v":0},{"$f":"KALENDARZ!L9","v":""},{"$f":"KALENDARZ!M9","v":0},{"$f":"KALENDARZ!N9","v":0},{"$f":"KALENDARZ!O9","v":""},{"$f":"KALENDARZ!P9","v":0},{"$f":"KALENDARZ!Q9","v":0},{"$f":"KALENDARZ!R9","v":""},{"$f":"KALENDARZ!S9","v":0},{"$f":"KALENDARZ!T9","v":0},{"$f":"KALENDARZ!U9","v":""}]
[null,null,{"$f":"KALENDARZ!C10","v":""},{"$f":"KALENDARZ!D10","v":0},{"$f":"KALENDARZ!E10","v":0},{"$f":"KALENDARZ!F10","v":""},{"$f":"KALENDARZ!G10","v":0},{"$f":"KALENDARZ!H10","v":0},{"$f":"KALENDARZ!I10","v":""},{"$f":"KALENDARZ!J10","v":0},{"$f":"KALENDARZ!K10","v":0},{"$f":"KALENDARZ!L10","v":""},{"$f":"KALENDARZ!M10","v":0},{"$f":"KALENDARZ!N10","v":0},{"$f":"KALENDARZ!O10","v":""},{"$f":"KALENDARZ!P10","v":0},{"$f":"KALENDARZ!Q10","v":0},{"$f":"KALENDARZ!R10","v":""},{"$f":"KALENDARZ!S10","v":0},{"$f":"KALENDARZ!T10","v":0},{"$f":"KALENDARZ!U10","v":""}]
[null,null,{"$f":"KALENDARZ!C11","v":"2016-07-04"},{"$f":"KALENDARZ!D11","v":0},{"$f":"KALENDARZ!E11","v":0},{"$f":"KALENDARZ!F11","v":"2016-07-05"},{"$f":"KALENDARZ!G11","v":0},{"$f":"KALENDARZ!H11","v":0},{"$f":"KALENDARZ!I11","v":"2016-07-06"},{"$f":"KALENDARZ!J11","v":0},{"$f":"KALENDARZ!K11","v":0},{"$f":"KALENDARZ!L11","v":"2016-07-07"},{"$f":"KALENDARZ!M11","v":0},{"$f":"KALENDARZ!N11","v":0},{"$f":"KALENDARZ!O11","v":"2016-07-08"},{"$f":"KALENDARZ!P11","v":0},{"$f":"KALENDARZ!Q11","v":0},{"$f":"KALENDARZ!R11","v":"2016-07-09"},{"$f":"KALENDARZ!S11","v":0},{"$f":"KALENDARZ!T11","v":0},{"$f":"KALENDARZ!U11","v":"2016-07-10"}]
[null,null,{"$f":"KALENDARZ!C12","v":""},{"$f":"KALENDARZ!D12","v":0},{"$f":"KALENDARZ!E12","v":0},{"$f":"KALENDARZ!F12","v":""},{"$f":"KALENDARZ!G12","v":0},{"$f":"KALENDARZ!H12","v":0},{"$f":"KALENDARZ!I12","v":""},{"$f":"KALENDARZ!J12","v":0},{"$f":"KALENDARZ!K12","v":0},{"$f":"KALENDARZ!L12","v":""},{"$f":"KALENDARZ!M12","v":0},{"$f":"KALENDARZ!N12","v":0},{"$f":"KALENDARZ!O12","v":"Rada miasta"},{"$f":"KALENDARZ!P12","v":0},{"$f":"KALENDARZ!Q12","v":0},{"$f":"KALENDARZ!R12","v":""},{"$f":"KALENDARZ!S12","v":0},{"$f":"KALENDARZ!T12","v":0},{"$f":"KALENDARZ!U12","v":""}]
[null,null,{"$f":"KALENDARZ!C13","v":""},{"$f":"KALENDARZ!D13","v":0},{"$f":"KALENDARZ!E13","v":0},{"$f":"KALENDARZ!F13","v":""},{"$f":"KALENDARZ!G13","v":0},{"$f":"KALENDARZ!H13","v":0},{"$f":"KALENDARZ!I13","v":""},{"$f":"KALENDARZ!J13","v":0},{"$f":"KALENDARZ!K13","v":0},{"$f":"KALENDARZ!L13","v":""},{"$f":"KALENDARZ!M13","v":0},{"$f":"KALENDARZ!N13","v":0},{"$f":"KALENDARZ!O13","v":""},{"$f":"KALENDARZ!P13","v":0},{"$f":"KALENDARZ!Q13","v":0},{"$f":"KALENDARZ!R13","v":""},{"$f":"KALENDARZ!S13","v":0},{"$f":"KALENDARZ!T13","v":0},{"$f":"KALENDARZ!U13","v":""}]
[null,null,{"$f":"KALENDARZ!C14","v":""},{"$f":"KALENDARZ!D14","v":0},{"$f":"KALENDARZ!E14","v":0},{"$f":"KALENDARZ!F14","v":""},{"$f":"KALENDARZ!G14","v":0},{"$f":"KALENDARZ!H14","v":0},{"$f":"KALENDARZ!I14","v":""},{"$f":"KALENDARZ!J14","v":0},{"$f":"KALENDARZ!K14","v":0},{"$f":"KALENDARZ!L14","v":""},{"$f":"KALENDARZ!M14","v":0},{"$f":"KALENDARZ!N14","v":0},{"$f":"KALENDARZ!O14","v":""},{"$f":"KALENDARZ!P14","v":0},{"$f":"KALENDARZ!Q14","v":0},{"$f":"KALENDARZ!R14","v":""},{"$f":"KALENDARZ!S14","v":0},{"$f":"KALENDARZ!T14","v":0},{"$f":"KALENDARZ!U14","v":""}]
[null,null,{"$f":"KALENDARZ!C15","v":""},{"$f":"KALENDARZ!D15","v":0},{"$f":"KALENDARZ!E15","v":0},{"$f":"KALENDARZ!F15","v":""},{"$f":"KALENDARZ!G15","v":0},{"$f":"KALENDARZ!H15","v":0},{"$f":"KALENDARZ!I15","v":""},{"$f":"KALENDARZ!J15","v":0},{"$f":"KALENDARZ!K15","v":0},{"$f":"KALENDARZ!L15","v":""},{"$f":"KALENDARZ!M15","v":0},{"$f":"KALENDARZ!N15","v":0},{"$f":"KALENDARZ!O15","v":""},{"$f":"KALENDARZ!P15","v":0},{"$f":"KALENDARZ!Q15","v":0},{"$f":"KALENDARZ!R15","v":""},{"$f":"KALENDARZ!S15","v":0},{"$f":"KALENDARZ!T15","v":0},{"$f":"KALENDARZ!U15","v":""}]
[null,null,{"$f":"KALENDARZ!C16","v":"2016-07-11"},{"$f":"KALENDARZ!D16","v":0},{"$f":"KALENDARZ!E16","v":0},{"$f":"KALENDARZ!F16","v":"2016-07-12"},{"$f":"KALENDARZ!G16","v":0},{"$f":"KALENDARZ!H16","v":0},{"$f":"KALENDARZ!I16","v":"2016-07-13"},{"$f":"KALENDARZ!J16","v":0},{"$f":"KALENDARZ!K16","v":0},{"$f":"KALENDARZ!L16","v":"2016-07-14"},{"$f":"KALENDARZ!M16","v":0},{"$f":"KALENDARZ!N16","v":0},{"$f":"KALENDARZ!O16","v":"2016-07-15"},{"$f":"KALENDARZ!P16","v":0},{"$f":"KALENDARZ!Q16","v":0},{"$f":"KALENDARZ!R16","v":"2016-07-16"},{"$f":"KALENDARZ!S16","v":0},{"$f":"KALENDARZ!T16","v":0},{"$f":"KALENDARZ!U16","v":"2016-07-17"}]
[null,null,{"$f":"KALENDARZ!C17","v":"Spotkanie społeczności przy obiedzie"},{"$f":"KALENDARZ!D17","v":0},{"$f":"KALENDARZ!E17","v":0},{"$f":"KALENDARZ!F17","v":"Wystawa antyków"},{"$f":"KALENDARZ!G17","v":0},{"$f":"KALENDARZ!H17","v":0},{"$f":"KALENDARZ!I17","v":""},{"$f":"KALENDARZ!J17","v":0},{"$f":"KALENDARZ!K17","v":0},{"$f":"KALENDARZ!L17","v":"Warsztat społecznościowy"},{"$f":"KALENDARZ!M17","v":0},{"$f":"KALENDARZ!N17","v":0},{"$f":"KALENDARZ!O17","v":"Rada miasta"},{"$f":"KALENDARZ!P17","v":0},{"$f":"KALENDARZ!Q17","v":0},{"$f":"KALENDARZ!R17","v":""},{"$f":"KALENDARZ!S17","v":0},{"$f":"KALENDARZ!T17","v":0},{"$f":"KALENDARZ!U17","v":""}]
[null,null,{"$f":"KALENDARZ!C18","v":""},{"$f":"KALENDARZ!D18","v":0},{"$f":"KALENDARZ!E18","v":0},{"$f":"KALENDARZ!F18","v":""},{"$f":"KALENDARZ!G18","v":0},{"$f":"KALENDARZ!H18","v":0},{"$f":"KALENDARZ!I18","v":""},{"$f":"KALENDARZ!J18","v":0},{"$f":"KALENDARZ!K18","v":0},{"$f":"KALENDARZ!L18","v":""},{"$f":"KALENDARZ!M18","v":0},{"$f":"KALENDARZ!N18","v":0},{"$f":"KALENDARZ!O18","v":""},{"$f":"KALENDARZ!P18","v":0},{"$f":"KALENDARZ!Q18","v":0},{"$f":"KALENDARZ!R18","v":""},{"$f":"KALENDARZ!S18","v":0},{"$f":"KALENDARZ!T18","v":0},{"$f":"KALENDARZ!U18","v":""}]
[null,null,{"$f":"KALENDARZ!C19","v":""},{"$f":"KALENDARZ!D19","v":0},{"$f":"KALENDARZ!E19","v":0},{"$f":"KALENDARZ!F19","v":""},{"$f":"KALENDARZ!G19","v":0},{"$f":"KALENDARZ!H19","v":0},{"$f":"KALENDARZ!I19","v":""},{"$f":"KALENDARZ!J19","v":0},{"$f":"KALENDARZ!K19","v":0},{"$f":"KALENDARZ!L19","v":""},{"$f":"KALENDARZ!M19","v":0},{"$f":"KALENDARZ!N19","v":0},{"$f":"KALENDARZ!O19","v":""},{"$f":"KALENDARZ!P19","v":0},{"$f":"KALENDARZ!Q19","v":0},{"$f":"KALENDARZ!R19","v":""},{"$f":"KALENDARZ!S19","v":0},{"$f":"KALENDARZ!T19","v":0},{"$f":"KALENDARZ!U19","v":""}]
[null,null,{"$f":"KALENDARZ!C20","v":""},{"$f":"KALENDARZ!D20","v":0},{"$f":"KALENDARZ!E20","v":0},{"$f":"KALENDARZ!F20","v":""},{"$f":"KALENDARZ!G20","v":0},{"$f":"KALENDARZ!H20","v":0},{"$f":"KALENDARZ!I20","v":""},{"$f":"KALENDARZ!J20","v":0},{"$f":"KALENDARZ!K20","v":0},{"$f":"KALENDARZ!L20","v":""},{"$f":"KALENDARZ!M20","v":0},{"$f":"KALENDARZ!N20","v":0},{"$f":"KALENDARZ!O20","v":""},{"$f":"KALENDARZ!P20","v":0},{"$f":"KALENDARZ!Q20","v":0},{"$f":"KALENDARZ!R20","v":""},{"$f":"KALENDARZ!S20","v":0},{"$f":"KALENDARZ!T20","v":0},{"$f":"KALENDARZ!U20","v":""}]
[null,null,{"$f":"KALENDARZ!C21","v":"2016-07-18"},{"$f":"KALENDARZ!D21","v":0},{"$f":"KALENDARZ!E21","v":0},{"$f":"KALENDARZ!F21","v":"2016-07-19"},{"$f":"KALENDARZ!G21","v":0},{"$f":"KALENDARZ!H21","v":0},{"$f":"KALENDARZ!I21","v":"2016-07-20"},{"$f":"KALENDARZ!J21","v":0},{"$f":"KALENDARZ!K21","v":0},{"$f":"KALENDARZ!L21","v":"2016-07-21"},{"$f":"KALENDARZ!M21","v":0},{"$f":"KALENDARZ!N21","v":0},{"$f":"KALENDARZ!O21","v":"2016-07-22"},{"$f":"KALENDARZ!P21","v":0},{"$f":"KALENDARZ!Q21","v":0},{"$f":"KALENDARZ!R21","v":"2016-07-23"},{"$f":"KALENDARZ!S21","v":0},{"$f":"KALENDARZ!T21","v":0},{"$f":"KALENDARZ!U21","v":"2016-07-24"}]
[null,null,{"$f":"KALENDARZ!C22","v":""},{"$f":"KALENDARZ!D22","v":0},{"$f":"KALENDARZ!E22","v":0},{"$f":"KALENDARZ!F22","v":"Warsztat z planowania strategicznego"},{"$f":"KALENDARZ!G22","v":0},{"$f":"KALENDARZ!H22","v":0},{"$f":"KALENDARZ!I22","v":"Sprzątanie parku"},{"$f":"KALENDARZ!J22","v":0},{"$f":"KALENDARZ!K22","v":0},{"$f":"KALENDARZ!L22","v":""},{"$f":"KALENDARZ!M22","v":0},{"$f":"KALENDARZ!N22","v":0},{"$f":"KALENDARZ!O22","v":"Rada miasta"},{"$f":"KALENDARZ!P22","v":0},{"$f":"KALENDARZ!Q22","v":0},{"$f":"KALENDARZ!R22","v":""},{"$f":"KALENDARZ!S22","v":0},{"$f":"KALENDARZ!T22","v":0},{"$f":"KALENDARZ!U22","v":""}]
[null,null,{"$f":"KALENDARZ!C23","v":""},{"$f":"KALENDARZ!D23","v":0},{"$f":"KALENDARZ!E23","v":0},{"$f":"KALENDARZ!F23","v":""},{"$f":"KALENDARZ!G23","v":0},{"$f":"KALENDARZ!H23","v":0},{"$f":"KALENDARZ!I23","v":""},{"$f":"KALENDARZ!J23","v":0},{"$f":"KALENDARZ!K23","v":0},{"$f":"KALENDARZ!L23","v":""},{"$f":"KALENDARZ!M23","v":0},{"$f":"KALENDARZ!N23","v":0},{"$f":"KALENDARZ!O23","v":""},{"$f":"KALENDARZ!P23","v":0},{"$f":"KALENDARZ!Q23","v":0},{"$f":"KALENDARZ!R23","v":""},{"$f":"KALENDARZ!S23","v":0},{"$f":"KALENDARZ!T23","v":0},{"$f":"KALENDARZ!U23","v":""}]
[null,null,{"$f":"KALENDARZ!C24","v":""},{"$f":"KALENDARZ!D24","v":0},{"$f":"KALENDARZ!E24","v":0},{"$f":"KALENDARZ!F24","v":""},{"$f":"KALENDARZ!G24","v":0},{"$f":"KALENDARZ!H24","v":0},{"$f":"KALENDARZ!I24","v":""},{"$f":"KALENDARZ!J24","v":0},{"$f":"KALENDARZ!K24","v":0},{"$f":"KALENDARZ!L24","v":""},{"$f":"KALENDARZ!M24","v":0},{"$f":"KALENDARZ!N24","v":0},{"$f":"KALENDARZ!O24","v":""},{"$f":"KALENDARZ!P24","v":0},{"$f":"KALENDARZ!Q24","v":0},{"$f":"KALENDARZ!R24","v":""},{"$f":"KALENDARZ!S24","v":0},{"$f":"KALENDARZ!T24","v":0},{"$f":"KALENDARZ!U24","v":""}]
[null,null,{"$f":"KALENDARZ!C25","v":""},{"$f":"KALENDARZ!D25","v":0},{"$f":"KALENDARZ!E25","v":0},{"$f":"KALENDARZ!F25","v":""},{"$f":"KALENDARZ!G25","v":0},{"$f":"KALENDARZ!H25","v":0},{"$f":"KALENDARZ!I25","v":""},{"$f":"KALENDARZ!J25","v":0},{"$f":"KALENDARZ!K25","v":0},{"$f":"KALENDARZ!L25","v":""},{"$f":"KALENDARZ!M25","v":0},{"$f":"KALENDARZ!N25","v":0},{"$f":"KALENDARZ!O25","v":""},{"$f":"KALENDARZ!P25","v":0},{"$f":"KALENDARZ!Q25","v":0},{"$f":"KALENDARZ!R25","v":""},{"$f":"KALENDARZ!S25","v":0},{"$f":"KALENDARZ!T25","v":0},{"$f":"KALENDARZ!U25","v":""}]
[null,null,{"$f":"KALENDARZ!C26","v":"2016-07-25"},{"$f":"KALENDARZ!D26","v":0},{"$f":"KALENDARZ!E26","v":0},{"$f":"KALENDARZ!F26","v":"2016-07-26"},{"$f":"KALENDARZ!G26","v":0},{"$f":"KALENDARZ!H26","v":0},{"$f":"KALENDARZ!I26","v":"2016-07-27"},{"$f":"KALENDARZ!J26","v":0},{"$f":"KALENDARZ!K26","v":0},{"$f":"KALENDARZ!L26","v":"2016-07-28"},{"$f":"KALENDARZ!M26","v":0},{"$f":"KALENDARZ!N26","v":0},{"$f":"KALENDARZ!O26","v":"2016-07-29"},{"$f":"KALENDARZ!P26","v":0},{"$f":"KALENDARZ!Q26","v":0},{"$f":"KALENDARZ!R26","v":"2016-07-30"},{"$f":"KALENDARZ!S26","v":0},{"$f":"KALENDARZ!T26","v":0},{"$f":"KALENDARZ!U26","v":"2016-07-31"}]
[null,null,{"$f":"KALENDARZ!C27","v":""},{"$f":"KALENDARZ!D27","v":0},{"$f":"KALENDARZ!E27","v":0},{"$f":"KALENDARZ!F27","v":"Piesza wycieczka po mieście"},{"$f":"KALENDARZ!G27","v":0},{"$f":"KALENDARZ!H27","v":0},{"$f":"KALENDARZ!I27","v":""},{"$f":"KALENDARZ!J27","v":0},{"$f":"KALENDARZ!K27","v":0},{"$f":"KALENDARZ!L27","v":""},{"$f":"KALENDARZ!M27","v":0},{"$f":"KALENDARZ!N27","v":0},{"$f":"KALENDARZ!O27","v":"Rada miasta"},{"$f":"KALENDARZ!P27","v":0},{"$f":"KALENDARZ!Q27","v":0},{"$f":"KALENDARZ!R27","v":""},{"$f":"KALENDARZ!S27","v":0},{"$f":"KALENDARZ!T27","v":0},{"$f":"KALENDARZ!U27","v":""}]
[null,null,{"$f":"KALENDARZ!C28","v":""},{"$f":"KALENDARZ!D28","v":0},{"$f":"KALENDARZ!E28","v":0},{"$f":"KALENDARZ!F28","v":"Wieczór w pubie"},{"$f":"KALENDARZ!G28","v":0},{"$f":"KALENDARZ!H28","v":0},{"$f":"KALENDARZ!I28","v":""},{"$f":"KALENDARZ!J28","v":0},{"$f":"KALENDARZ!K28","v":0},{"$f":"KALENDARZ!L28","v":""},{"$f":"KALENDARZ!M28","v":0},{"$f":"KALENDARZ!N28","v":0},{"$f":"KALENDARZ!O28","v":""},{"$f":"KALENDARZ!P28","v":0},{"$f":"KALENDARZ!Q28","v":0},{"$f":"KALENDARZ!R28","v":""},{"$f":"KALENDARZ!S28","v":0},{"$f":"KALENDARZ!T28","v":0},{"$f":"KALENDARZ!U28","v":""}]
[null,null,{"$f":"KALENDARZ!C29","v":""},{"$f":"KALENDARZ!D29","v":0},{"$f":"KALENDARZ!E29","v":0},{"$f":"KALENDARZ!F29","v":""},{"$f":"KALENDARZ!G29","v":0},{"$f":"KALENDARZ!H29","v":0},{"$f":"KALENDARZ!I29","v":""},{"$f":"KALENDARZ!J29","v":0},{"$f":"KALENDARZ!K29","v":0},{"$f":"KALENDARZ!L29","v":""},{"$f":"KALENDARZ!M29","v":0},{"$f":"KALENDARZ!N29","v":0},{"$f":"KALENDARZ!O29","v":""},{"$f":"KALENDARZ!P29","v":0},{"$f":"KALENDARZ!Q29","v":0},{"$f":"KALENDARZ!R29","v":""},{"$f":"KALENDARZ!S29","v":0},{"$f":"KALENDARZ!T29","v":0},{"$f":"KALENDARZ!U29","v":""}]
[null,null,{"$f":"KALENDARZ!C30","v":""},{"$f":"KALENDARZ!D30","v":0},{"$f":"KALENDARZ!E30","v":0},{"$f":"KALENDARZ!F30","v":""},{"$f":"KALENDARZ!G30","v":0},{"$f":"KALENDARZ!H30","v":0},{"$f":"KALENDARZ!I30","v":""},{"$f":"KALENDARZ!J30","v":0},{"$f":"KALENDARZ!K30","v":0},{"$f":"KALENDARZ!L30","v":""},{"$f":"KALENDARZ!M30","v":0},{"$f":"KALENDARZ!N30","v":0},{"$f":"KALENDARZ!O30","v":""},{"$f":"KALENDARZ!P30","v":0},{"$f":"KALENDARZ!Q30","v":0},{"$f":"KALENDARZ!R30","v":""},{"$f":"KALENDARZ!S30","v":0},{"$f":"KALENDARZ!T30","v":0},{"$f":"KALENDARZ!U30","v":""}]
[null,null,{"$f":"KALENDARZ!C31","v":"2016-08-01"},{"$f":"KALENDARZ!D31","v":0},{"$f":"KALENDARZ!E31","v":0},{"$f":"KALENDARZ!F31","v":"2016-08-02"},null,null,{"$f":"KALENDARZ!I31","v":"NOTATKI:"}]
[null,null,{"$f":"KALENDARZ!C32","v":""},{"$f":"KALENDARZ!D32","v":0},{"$f":"KALENDARZ!E32","v":0},{"$f":"KALENDARZ!F32","v":""}]
[null,null,{"$f":"KALENDARZ!C33","v":""},{"$f":"KALENDARZ!D33","v":0},{"$f":"KALENDARZ!E33","v":0},{"$f":"KALENDARZ!F33","v":""}]
[null,null,{"$f":"KALENDARZ!C34","v":""},{"$f":"KALENDARZ!D34","v":0},{"$f":"KALENDARZ!E34","v":0},{"$f":"KALENDARZ!F34","v":""}]
[null,null,{"$f":"KALENDARZ!C35","v":""},{"$f":"KALENDARZ!D35","v":0},{"$f":"KALENDARZ!E35","v":0},{"$f":"KALENDARZ!F35","v":""}]

{"sheet":"ADMINISTRATOR","index":3,"n_rows":14,"n_cols":3,"rows_kept":14,"hidden":true}
[]
[null,"MIESIĄC","LICZBA"]
[null,"STYCZEŃ",1]
[null,"LUTY",2]
[null,"MARZEC",3]
[null,"KWIECIEŃ",4]
[null,"MAJ",5]
[null,"CZERWIEC",6]
[null,"LIPIEC",7]
[null,"SIERPIEŃ",8]
[null,"WRZESIEŃ",9]
[null,"PAŹDZIERNIK",10]
[null,"LISTOPAD",11]
[null,"GRUDZIEŃ",12]